Cogmind - Beta 17 @@@ ROGUE MODE // 2026.07.08 @ 11:22:35 Player: IsAway Result: Destroyed by 3Z-QWE(R) with Subdweller Machine Gun Performance ------------- Evolutions (0) 0 Regions Visited (3) 600 Robots Destroyed (11) 55 Value Destroyed (151) 151 Prototype IDs (0) 0 Alien Tech Used (0) 0 Bonus (0) 0 TOTAL SCORE: 806 Bonus ------- None Cogmind --------- Core Integrity 0/250 Matter 299/300 Energy 200/200 System Corruption 0% Temperature Cool (0) Movement Walking (190) Ox1 Location -10/Subcaves Parts ------- > --- POWER (1) -------- Subdweller Power Source > --- PROPULSION (2) --- Aluminum Leg > --- UTILITY (2) ------ Small Storage Unit Seismic Detector > --- WEAPON (2) ------- Medium Laser > --- INVENTORY (8) ---- Light Ion Engine Compact Wheel Large Storage Unit Subdweller Optics Sensor Array Improved Terrain Scanner Scrap Shield Fragment (44) Scrap Shield Fragment (39) Peak State ------------ > --- POWER ------------ Subdweller Power Source > --- PROPULSION ------- Aluminum Leg Aluminum Leg > --- UTILITY ---------- Small Storage Unit Seismic Detector > --- WEAPON ----------- Light Assault Rifle Grenade Launcher > --- INVENTORY -------- Ion Engine Light Ion Engine Compact Wheel Large Storage Unit Sensor Array Improved Terrain Scanner Medium Laser Medium Laser [Rating: 9] Favorites ----------- Power Light Ion Engine Engine Light Ion Engine Propulsion Aluminum Leg Leg Aluminum Leg Wheel Wheel Utility Small Storage Unit Device Seismic Detector Storage Small Storage Unit Weapon Light Assault Rifle Energy Gun Medium Laser Ballistic Gun Light Assault Rifle Launcher Grenade Launcher Special Weapon Mining Laser Build | -11 -10 -10 -10 ------- Run | Yrd Mat Min Sub Slots Evolved . | . . . . Power . | . . . . Propulsion . | . . . . Utility . | . . . . Weapon . | . . . . Parts Attached 15 | 10 1 2 2 Power 3 | 1 . . 2 Engine 3 | 1 . . 2 Core . | . . . . Reactor . | . . . . Propulsion 4 | 4 . . . Treads . | . . . . Leg 2 | 2 . . . Wheel 2 | 2 . . . Hover . | . . . . Flight . | . . . . Utility 2 | 2 . . . Device 1 | 1 . . . Storage 1 | 1 . . . Processor . | . . . . Hackware . | . . . . Protection . | . . . . Artifact . | . . . . Weapon 6 | 3 1 2 . Energy Gun 2 | 2 . . . Energy Cannon . | . . . . Ballistic Gun 2 | 1 . 1 . Ballistic Cannon . | . . . . Launcher 1 | . . 1 . Special Weapon 1 | . 1 . . Impact Weapon . | . . . . Slashing Weapon . | . . . . Piercing Weapon . | . . . . Special Melee Weapon . | . . . . Unidentified Prototypes . | . . . . Parts Lost 5 | . . 1 4 Power 1 | . . . 1 Propulsion 1 | . . . 1 Utility . | . . . . Weapon 3 | . . 1 2 Highest Loss Streak 2 | . . 1 2 To Critical Strikes . | . . . . Average Backups 6 | 4 6 6 6 Power 1 | . 1 1 1 Propulsion 1 | 1 1 1 1 Utility 2 | . 1 2 3 Weapon 1 | 1 2 2 1 Tool/Special . | . . . . Unused Backups 5 | . . . 5 Power 1 | . . . 1 Propulsion . | . . . . Utility 4 | . . . 4 Weapon . | . . . . Tool/Special . | . . . . Average Slot Usage (%) 98 | . 100 99 95 Engine 13 | . 14 14 12 Leg 27 | . 28 28 26 Device 14 | . 14 14 14 Storage 14 | . 14 14 14 Energy Gun 2 | . 1 . 6 Ballistic Gun 14 | . 14 14 14 Launcher 8 | . . 13 5 Special Weapon 2 | . 12 . . Peak Build Rating 9 | 7 7 7 9 Average Rating 6 | 5 7 6 7 On Entrance 5 | . 7 7 7 Avg Prop Armor Cover (%) . | . . . . Naked Turns . | . . . . Heaviest Build 15 | 12 12 13 15 Greatest Support 20 | 20 20 20 20 Greatest Overweight (x) 2 | 2 . . . Average Overweight (x) . | . . . . Largest Inventory Capacity 8 | 8 8 8 8 Average Capacity 7 | 7 8 8 8 Most Carried 8 | 7 7 7 8 Average Carried 6 | 4 6 6 7 Final Capacity 8 | 8 8 8 8 Final Carried 8 | 5 7 7 8 Class Distribution -------------------- 100% | Mutant Dominant Class ---------------- Mutant | -10/Materials Mutant | -10/Mines Mutant | -10/Subcaves Resources | -11 -10 -10 -10 ----------- Run | Yrd Mat Min Sub Matter Collected 405 | 287 . 91 27 Remotely . | . . . . Salvage Created 277 | 196 . 19 62 Parts 21 | 12 . 3 6 Haulers Intercepted . | . . . . Recyclers Shooed . | . . . . Parts Field Recycled . | . . . . Retrieved Matter . | . . . . Parts Self-Destructed 3 | . . . 3 Prevented . | . . . . Parts Restored . | . . . . Kills | -11 -10 -10 -10 ------- Run | Yrd Mat Min Sub Combat Hostiles Destroyed 5 | . . 3 2 Guns 3 | . . 1 2 AOE 2 | . . 2 . Classes Destroyed 4 | 2 . 1 1 Tunneler 5 | 5 . . . Recycler 1 | 1 . . . Swarmer 3 | . . 3 . Subdweller 2 | . . . 2 Best Kill Streak 4 | 4 . 3 1 Combat Bots Only 3 | . . 3 1 Max Kills in Single Turn 2 | 1 . 2 1 Gunslinging . | . . . . Exploded 2 | . . 2 . Melee . | . . . . Uniques/NPCs Destroyed . | . . . . Combat | -11 -10 -10 -10 -------- Run | Yrd Mat Min Sub Hostile Shots Fired 73 | . 7 26 40 Missed 21 | . 3 8 10 Hits 52 | . 4 18 30 Projectile 52 | . 4 18 30 Damage Taken 816 | . 42 155 619 Core 268 | . . 37 231 Absorbed by Shields . | . . . . Core Remaining (%) 100 | 100 . . . Volleys Fired 47 | 19 7 5 16 Largest 2 | 2 1 2 2 Hottest 100 | 70 100 100 70 Shots Fired 82 | 38 7 7 30 Gun 72 | 38 . 4 30 Cannon . | . . . . Launcher 2 | . . 2 . Special 8 | . 7 1 . Kinetic 37 | 19 . 4 14 Thermal 43 | 19 7 1 16 Explosive 2 | . . 2 . Electromagnetic . | . . . . Robot Hit Streak 11 | 11 . 6 8 Robot Miss Streak 2 | 2 . . 2 Penetration Max . | . . . . Secondary Targets . | . . . . Shots Hit Robots 49 | 24 . 2 23 Core Hits 20 | 10 . 4 6 Critical Kills . | . . . . Critical Parts Destroyed . | . . . . Critical Strikes 2 | 1 . . 1 Burn 2 | 1 . . 1 Melee Attacks . | . . . . Impact . | . . . . Slashing . | . . . . Piercing . | . . . . Sneak Attacks . | . . . . Combat Hostiles . | . . . . Follow-up Attacks . | . . . . Damage Inflicted 566 | 262 . 58 246 Guns 524 | 262 . 16 246 Cannons . | . . . . Explosions 42 | . . 42 . Melee . | . . . . Ramming . | . . . . Kinetic 198 | 98 . 16 84 Thermal 326 | 164 . . 162 Explosive 42 | . . 42 . Electromagnetic . | . . . . Impact . | . . . . Slashing . | . . . . Piercing . | . . . . Highest Corruption . | . . . . Average Corruption . | . . . . Corruption Purged . | . . . . Corruption Blocked . | . . . . Overload Shots . | . . . . Overflow Damage . | . . . . Projectiles . | . . . . Explosions . | . . . . Melee . | . . . . Knockbacks . | . . . . Impact . | . . . . Kinetic . | . . . . Secondary . | . . . . Self-Inflicted Damage . | . . . . Shots . | . . . . Rammed . | . . . . Targets Rammed . | . . . . Kicked . | . . . . Crushed . | . . . . Highest Temperature 110 | 110 60 20 1 Average Temperature 30 | 40 22 9 1 Received Heat Transfer 156 | . 24 . 132 Siege Activations . | . . . . Martial Activations . | . . . . Shielding Activations . | . . . . Robots Disrupted . | . . . . Combat Hostiles . | . . . . Robots Corrupted . | . . . . Combat Hostiles . | . . . . Parts Fried . | . . . . Impact Corruptions . | . . . . Robots Melted . | . . . . Combat Hostiles . | . . . . Parts Melted 3 | 2 . . 1 Heat Transferred 1110 | 555 . . 555 Parts Sabotaged . | . . . . Parts Stolen . | . . . . Parts Stripped . | . . . . Power Chain Reactions . | . . . . Alert | -11 -10 -10 -10 ------- Run | Yrd Mat Min Sub Maximum Alert Level . | . . . . Low Security (%) 100 | 100 100 100 . Level 1 . | . . . . Level 2 . | . . . . Level 3 . | . . . . Level 4 . | . . . . Level 5 . | . . . . High Security . | . . . . Max Security . | . . . . Peak Influence 69 | 10 3 69 . Initial . | . . . . Average 6 | 1 . 9 . Influence Increases 116 | 30 6 80 . Destroy 0b10 Robot/C 60 | . . 60 . Destroy 0b10 Robot/NC 30 | 30 . . . Destroy Leader 10 | . . 10 . Destroy Structure 16 | . 6 10 . Influence Decreases 116 | 30 5 81 . Entered New Map 1 | . . 1 . Time Decay 115 | 30 5 80 . Squads Dispatched 1 | . 1 . . Investigation 1 | . 1 . . Extermination . | . . . . Reinforcement . | . . . . Assault . | . . . . Garrison . | . . . . Intercept . | . . . . Searches Triggered . | . . . . Construction Impeded . | . . . . Haulers Reinforced . | . . . . Active Scanning Responses . | . . . . Cargo Convoy Interrupts . | . . . . Stealth | -11 -10 -10 -10 --------- Run | Yrd Mat Min Sub Distress Signals . | . . . . Communications Jammed . | . . . . Distress Signals . | . . . . Times Spotted 10 | . 4 3 3 Peak Tracking Total 3 | . 3 3 2 Tactical Retreats . | . . . . Traps | -11 -10 -10 -10 ------- Run | Yrd Mat Min Sub Traps Triggered 1 | . 1 . . Indirectly . | . . . . Trap Hack Attempts . | . . . . Triggered . | . . . . Disarmed . | . . . . Reprogrammed . | . . . . Reused . | . . . . Traps Extracted . | . . . . Installed . | . . . . Triggered . | . . . . Machines | -11 -10 -10 -10 ---------- Run | Yrd Mat Min Sub Machines Disabled . | . . . . Max in Single Turn . | . . . . Machines Repaired . | . . . . Machines Dismantled . | . . . . Machines Sabotaged . | . . . . Overloaded Fab Kills . | . . . . Hacking | -11 -10 -10 -10 --------- Run | Yrd Mat Min Sub Machines Accessed 1 | . 1 . . Terminals 1 | . 1 . . Fabricators . | . . . . Repair Stations . | . . . . Recycling Units . | . . . . Scanalyzers . | . . . . Garrison Access . | . . . . Total Hacks 4 | . 4 . . Successful 3 | . 3 . . Failed 1 | . 1 . . Catastrophic . | . . . . Database Lockouts . | . . . . Manual . | . . . . Terminals 4 | . 4 . . Fabricators . | . . . . Repair Stations . | . . . . Recycling Units . | . . . . Scanalyzers . | . . . . Garrison Access . | . . . . Terminal Hacks 3 | . 3 . . Transport Status 1 | . 1 . . Hauler Manifests 1 | . 1 . . Zone Layout 1 | . 1 . . Fabricator Hacks . | . . . . Repair Station Hacks . | . . . . Recycling Unit Hacks . | . . . . Scanalyzer . | . . . . Garrison Access Hacks . | . . . . Unauthorized Hacks . | . . . . Terminals . | . . . . Fabricators . | . . . . Repair Stations . | . . . . Recycling Units . | . . . . Scanalyzers . | . . . . Garrison Access . | . . . . Data Cores Recovered . | . . . . Used . | . . . . Hacking Detections 1 | . 1 . . Full Trace Events . | . . . . Feedback Events . | . . . . Feedback Blocked . | . . . . Robot Schematics Acquired . | . . . . Robots Built . | . . . . Authchips . | . . . . Time . | . . . . Total Robot Build Rating . | . . . . Part Schematics Acquired . | . . . . Parts Built . | . . . . Authchips . | . . . . Time . | . . . . Total Part Build Rating . | . . . . Part Studies Acquired . | . . . . Parts Repaired . | . . . . Time . | . . . . Parts Recycled . | . . . . Recycled Matter . | . . . . Retrieved Matter . | . . . . Retrieved Components . | . . . . Parts Scanalyzed . | . . . . Part Schematics Acquired . | . . . . Parts Damaged . | . . . . Bothacking | -11 -10 -10 -10 ------------ Run | Yrd Mat Min Sub Used RIF Installer . | . . . . Robots Hacked . | . . . . Non-combat . | . . . . Combat . | . . . . Robot Hacks Applied . | . . . . Relay Couplers Released . | . . . . Fabnet Peak Effective % . | . . . . Robots Rewired . | . . . . Allies Hacked . | . . . . Hacks Repelled . | . . . . Allies | -11 -10 -10 -10 -------- Run | Yrd Mat Min Sub Total Allies . | . . . . Largest Group . | . . . . Highest-Rated Group . | . . . . Highest-Rated Ally . | . . . . Total Orders . | . . . . Ally Attacks . | . . . . Total Damage . | . . . . Kills . | . . . . Allies Corrupted . | . . . . Allies Melted . | . . . . Intel | -11 -10 -10 -10 ------- Run | Yrd Mat Min Sub Active Infowar (turns) 986 | 16 156 550 264 Seismic 986 | 16 156 550 264 Robot Analysis Total . | . . . . Derelict Logs Recovered 1 | . . 1 . Drone Launches . | . . . . Drone Recoveries . | . . . . Exploration | -11 -10 -10 -10 ------------- Run | Yrd Mat Min Sub Turns Passed 1155 | 185 156 550 264 Spaces Moved 652 | 93 104 283 172 Core 7 | 7 . . . Treads . | . . . . Legs 645 | 86 104 283 172 Wheels . | . . . . Hover . | . . . . Flight . | . . . . Fastest Speed 50 | 50 120 120 120 Average Speed 119 | 117 120 120 120 Slowest Speed 150 | 150 120 120 120 Overloaded Moves . | . . . . Propulsion Burnouts . | . . . . Robots Hopped . | . . . . Potential Cave-ins . | . . . . Cave-ins Triggered . | . . . . Exploration Rate (%) 27 | 4 26 64 15 Regions Visited 3 Branch Regions 2 Pre-discovered Areas . | . . . . Known Exits Taken . | . . . . Unknown Exits Taken 3 | 1 1 1 . Scrap Searched 2 | . . 1 1 Spaces Dug 8 | . 7 1 . Terrain Destroyed 17 | . 7 10 . Melee . | . . . . Projectile 8 | . 7 1 . AOE 9 | . . 9 . Terrain Rammed . | . . . . Walls Destroyed . | . . . . Machines Disabled . | . . . . Actions | -11 -10 -10 -10 --------- Run | Yrd Mat Min Sub Total 932 | 131 113 485 203 Wait 201 | . . 194 7 Move 649 | 92 103 282 172 Hop . | . . . . Pick Up 14 | 8 2 1 3 Fast Attach 7 | 5 . 1 1 Attach 5 | 3 . 1 1 Detach . | . . . . Swap 5 | 3 1 . 1 Drop 4 | 1 . 1 2 Fire 47 | 19 7 5 16 Melee . | . . . . Ram . | . . . . Kick . | . . . . Crush . | . . . . Escape Stasis . | . . . . Rewire . | . . . . Trap . | . . . . Miscellaneous . | . . . . Route ------- -11/Scrapyard -10/Materials -10/Mines -10/Subcaves (discovered 1 exit: [*Mat]) History --------- Turn | Location | Event 8 | -11/Scrapyard | Discovered new exit (range 15) 186 | -11/Scrapyard | Entered Materials 299 | -10/Materials | Discovered new exit (range 16) 306 | -10/Materials | Build established: Mutant 342 | -10/Materials | Entered Mines 354 | -10/Mines | Met a Derelict bent on vengeance 582 | -10/Mines | Learned Materials trap positions 857 | -10/Mines | Discovered new exit (range 10) 892 | -10/Mines | Entered Subcaves 963 | -10/Subcaves | Discovered new exit (range 6) 972 | -10/Subcaves | Disturbed a concealed Subdweller 1139 | -10/Subcaves | Core integrity fell below 50% 1147 | -10/Subcaves | Core integrity fell below 20% 1156 | -10/Subcaves | Destroyed by 3Z-QWE(R) with Subdweller Machine Gun Last Messages --------------- Found 48 Matter. A0-OA0(R) angrily emerges from the Twisted Machinery. Subatomizers dissect the Battle Cannon. Grenade Launcher destroyed. Sub. Power Source destroyed. A0-OA0(R) suffers critical hit (Burn). Sub. Laser melted. A0-OA0(R) destroyed. Acquired 17 matter. Acquired Sub. Power Source. Acquired 10 matter. Acquired Scrap Shield Fragment. Dropped Ion Engine. Acquired Scrap Shield Fragment. Dropped Med. Laser. Acquired Sub. Optics. Aluminum Leg destroyed. Lgt. Assault Rifle destroyed. 95-JQ3(R) destroyed. Map ----- +----------------------------------------------------+ | ????????????????????## #?????????????????? | | ????????????????????# #?????????????????? | | ????????????????????## ##??????###????????? | | ?????????????????????## ##??????? #????????? | | ??????????????????????## ##???????? #????????? | | ???????????????????????# ##????????# ##???????? | | ???????????????????????# ##???????## #???????? | | ???????????????????????# ##??????## #???????? | | ???????????????????????# ##???### #???????? | | ???????????????????????# ##### #???????? | | ???????????????????????# # # #????????? | | ?????????????????#?????# #?????????? | | ????????????????## ???## ##?????????? | | ??????????????? ### ## # #?????????? | | ??????????????? ## # ## ##?????????? | | ??????????????????# #### #??????????? | | ??????????????????## ### ##? #??????????? | | ???????????????????### ??# ### ??????????? | | ?????????????????????#??## ## ?????????? | | ????????????????????????# ####### ????????? | | ???????????????????????## ## #?????? #???????? | | ??????????????????????## #####??????# #???????? | | ??????????????????????# ##?????????? #???????? | | ??????????????????????# #?????????? #???????? | | ?????????????????###### ##?????????? ???????? | | ????????????????## @##???????????? ???????? | | ???????????????# R%##????????????? #??????? | | ??????????????# !#?????????????? ????????? | | ??????????????# ???????????????????????? | | ?????????????#"" ???????????????????????? | | ??????????????""## ??????????????????????? | | ?????????????????##"" ??????????????????????? | | ??????????????????##"""" ##?????????????????????? | | ???????????????????##"""" #??????????????????????? | | ????????????????????#" "##??????????????????????? | | ????????????????????? ##????????????????????????? | | ????????????????????? #??????????????????????????? | | ?????????????????????????????????????????????????? | | ?????????????????????????????????????????????????? | | ?????????????????????????????????????????????????? | | ?????????????????????????????????????????????????? | | ?????????????????????????????????????????????????? | | ?????????????????????????????????????????????????? | | ?????????????????????????????????????????????????? | | ?????????????????????????????????????????????????? | | ?????????????????????????????????????????????????? | | ?????????????????????????????????????????????????? | | ?????????????????????????????????????????????????? | | ?????????????????????????????????????????????????? | | ?????????????????????????????????????????????????? | +----------------------------------------------------+ Best States ------------- Heat Dissipation 25 Energy Generation 15 Energy Capacity 200 Matter Stores 300 Matter Capacity 300 Sight Range 16 Terrain Scan Density 10 Evasion (%) 55 Item Schematics ----------------- None Robot Schematics ------------------ None Fabricated ------------ Nothing Repaired ---------- Nothing Studied --------- None Alien Tech Used ----------------- None Achievements -------------- Shopping List Challenges ------------ None Game ------ Seed SwordRingFalx Manual? 0 Play Time 00:22:35 Cumulative 7.0 hours Start 2026.07.08 @ 10:56:28 End 2026.07.08 @ 11:22:35 Sessions 1 Manual Loads 0 Difficulty Rogue Special Mode None Game No. 5 Rogue 5 Adventurer 0 Explorer 0 Win Type - Total 0 Types 0/0/0/0/0/0/0/0/0/0 Lore% 2 Gallery% 7 Achievement% 9 Wizard Run 0 Options --------- Layout 1 ASCII 0 Keyboard 0 Movement Mouse Keybinds 0 Fullscreen 1 Font 18/SmallcapsGlow Map View 51x41 Zoom Use 0% Tactical HUD 0 Map Filters NONE Filters NONE Steam 1 RUN: d92e2f95-7957-4ca3-965a-7f010ef16b9f